[Event "*** SCC Grand Prix: Titled Tuesday Blitz"]
[Site "Chess.com"]
[Date "2020.09.08"]
[Round "2"]
[White "Kaua18"]
[Black "Th3_Hound"]
[Result "1-0"]
[WhiteElo "2328"]
[BlackElo "2600"]
[TimeControl "180+1"]
[EndTime "10:15:07 PDT"]
[Termination "Kaua18 won by resignation"]

1. e4 {[%clk 0:02:57.8]} 1... e5 {[%clk 0:02:58.9]} 2. Nf3 {[%clk 0:02:54.9]}
2... Nc6 {[%clk 0:02:58.7]} 3. d4 {[%clk 0:02:52.3]} 3... exd4 {[%clk
0:02:58.6]} 4. Bc4 {[%clk 0:02:52.8]} 4... Nf6 {[%clk 0:02:54.4]} 5. e5 {[%clk
0:02:53]} 5... d5 {[%clk 0:02:54.5]} 6. Bb5 {[%clk 0:02:53.3]} 6... Ne4 {[%clk
0:02:54.1]} 7. Nxd4 {[%clk 0:02:53.5]} 7... Bd7 {[%clk 0:02:54.5]} 8. Bxc6
{[%clk 0:02:53.5]} 8... bxc6 {[%clk 0:02:55.4]} 9. O-O {[%clk 0:02:53.7]} 9...
Bc5 {[%clk 0:02:55.1]} 10. f3 {[%clk 0:02:54]} 10... Ng5 {[%clk 0:02:54.7]} 11.
f4 {[%clk 0:02:54.1]} 11... Ne4 {[%clk 0:02:55.2]} 12. Be3 {[%clk 0:02:54]}
12... O-O {[%clk 0:02:54.4]} 13. Nd2 {[%clk 0:02:54.1]} 13... Nxd2 {[%clk
0:02:52.4]} 14. Qxd2 {[%clk 0:02:55]} 14... Qe7 {[%clk 0:02:37.2]} 15. Nb3
{[%clk 0:02:54.2]} 15... Bb6 {[%clk 0:02:34.9]} 16. a4 {[%clk 0:02:54.1]} 16...
a5 {[%clk 0:02:31.7]} 17. Rae1 {[%clk 0:02:53.7]} 17... Bf5 {[%clk 0:02:18.9]}
18. Bxb6 {[%clk 0:02:20.2]} 18... cxb6 {[%clk 0:02:17.5]} 19. Nd4 {[%clk
0:02:21.1]} 19... Qd7 {[%clk 0:02:02.9]} 20. h3 {[%clk 0:02:01.7]} 20... Be4
{[%clk 0:02:02.3]} 21. c3 {[%clk 0:01:27]} 21... Rae8 {[%clk 0:01:58.2]} 22. Nf3
{[%clk 0:01:20.7]} 22... h6 {[%clk 0:01:39.5]} 23. Rxe4 {[%clk 0:01:18.7]} 1-0

[Event "*** SCC Grand Prix: Titled Tuesday Blitz"]
[Site "Chess.com"]
[Date "2020.09.08"]
[Round "2"]
[White "Chessdemon2019"]
[Black "szefru"]
[Result "1-0"]
[WhiteElo "2379"]
[BlackElo "2064"]
[TimeControl "180+1"]
[EndTime "10:15:17 PDT"]
[Termination "Chessdemon2019 won by resignation"]

1. e4 {[%clk 0:03:00.9]} 1... Nf6 {[%clk 0:02:58.9]} 2. e5 {[%clk 0:02:57.8]}
2... Nd5 {[%clk 0:02:58.2]} 3. c4 {[%clk 0:02:58.2]} 3... Nb6 {[%clk 0:02:57.8]}
4. d4 {[%clk 0:02:58.9]} 4... d6 {[%clk 0:02:55.6]} 5. exd6 {[%clk 0:02:59.8]}
5... exd6 {[%clk 0:02:54.1]} 6. Nc3 {[%clk 0:02:59.7]} 6... Be7 {[%clk
0:02:54.3]} 7. Be3 {[%clk 0:02:58.7]} 7... O-O {[%clk 0:02:54.1]} 8. Rc1 {[%clk
0:02:57]} 8... Nc6 {[%clk 0:02:50.9]} 9. Bd3 {[%clk 0:02:53.4]} 9... Bf6 {[%clk
0:02:46.7]} 10. Nge2 {[%clk 0:02:51.4]} 10... Bg4 {[%clk 0:02:35.7]} 11. f3
{[%clk 0:02:50.6]} 11... Bh4+ {[%clk 0:02:34.7]} 12. Ng3 {[%clk 0:02:47.6]}
12... Bd7 {[%clk 0:02:17.1]} 13. O-O {[%clk 0:02:45.4]} 13... f5 {[%clk
0:02:09.1]} 14. Nh5 {[%clk 0:02:30.6]} 14... Bg5 {[%clk 0:02:00.7]} 15. Bxg5
{[%clk 0:02:23.8]} 15... Qxg5 {[%clk 0:02:01.6]} 16. f4 {[%clk 0:02:24.4]} 16...
Qg6 {[%clk 0:01:57.1]} 17. c5 {[%clk 0:02:22.1]} 17... Nc8 {[%clk 0:01:43.3]}
18. Bc4+ {[%clk 0:02:20.7]} 18... Kh8 {[%clk 0:01:41.5]} 19. Ng3 {[%clk
0:02:19.6]} 19... Qf6 {[%clk 0:01:35.9]} 20. Nd5 {[%clk 0:02:07.8]} 20... Qxd4+
{[%clk 0:01:28.5]} 21. Qxd4 {[%clk 0:02:07.6]} 21... Nxd4 {[%clk 0:01:29.4]} 22.
Nxc7 {[%clk 0:02:07.7]} 22... Rb8 {[%clk 0:01:29.8]} 23. cxd6 {[%clk 0:02:05.3]}
23... b5 {[%clk 0:01:09.7]} 24. Bd5 {[%clk 0:01:52.2]} 24... Nxd6 {[%clk
0:01:09.1]} 25. Rfd1 {[%clk 0:01:51.1]} 1-0

[Event "*** SCC Grand Prix: Titled Tuesday Blitz"]
[Site "Chess.com"]
[Date "2020.09.08"]
[Round "2"]
[White "Sultanasharminshirin"]
[Black "CalinGheorghiu"]
[Result "1-0"]
[WhiteElo "2015"]
[BlackElo "2351"]
[TimeControl "180+1"]
[EndTime "10:15:27 PDT"]
[Termination "Sultanasharminshirin won by resignation"]

1. Nf3 {[%clk 0:03:00.9]} 1... d5 {[%clk 0:02:59.6]} 2. d4 {[%clk 0:02:58.5]}
2... Nf6 {[%clk 0:02:59.6]} 3. c4 {[%clk 0:02:56.6]} 3... e6 {[%clk 0:02:59.7]}
4. Nc3 {[%clk 0:02:56.4]} 4... Nbd7 {[%clk 0:02:58.7]} 5. Bg5 {[%clk 0:02:53.2]}
5... c6 {[%clk 0:02:57.1]} 6. e3 {[%clk 0:02:53]} 6... Qa5 {[%clk 0:02:53.8]} 7.
Nd2 {[%clk 0:02:50.9]} 7... Bb4 {[%clk 0:02:53]} 8. cxd5 {[%clk 0:02:48.9]} 8...
Nxd5 {[%clk 0:02:51.2]} 9. Nxd5 {[%clk 0:02:23]} 9... exd5 {[%clk 0:02:49.3]}
10. a3 {[%clk 0:02:12.3]} 10... Bd6 {[%clk 0:02:46.5]} 11. Bd3 {[%clk
0:02:08.1]} 11... Nf8 {[%clk 0:02:42.9]} 12. O-O {[%clk 0:02:02.1]} 12... Ng6
{[%clk 0:02:42.9]} 13. Qc2 {[%clk 0:01:51.3]} 13... h6 {[%clk 0:02:33.7]} 14.
Bxg6 {[%clk 0:01:49.2]} 14... hxg5 {[%clk 0:02:33.4]} 15. Nf3 {[%clk 0:01:33]}
15... Qc7 {[%clk 0:02:15.6]} 16. g3 {[%clk 0:00:58.3]} 16... fxg6 {[%clk
0:02:02]} 17. Qxg6+ {[%clk 0:00:56.8]} 17... Kf8 {[%clk 0:02:02.5]} 18. Nxg5
{[%clk 0:00:50.9]} 18... Rh6 {[%clk 0:02:01]} 19. Nh7+ {[%clk 0:00:42.1]} 19...
Kg8 {[%clk 0:01:52.9]} 20. Nf6+ {[%clk 0:00:41]} 20... Kh8 {[%clk 0:01:42.1]}
21. Qe8+ {[%clk 0:00:39]} 1-0

[Event "*** SCC Grand Prix: Titled Tuesday Blitz"]
[Site "Chess.com"]
[Date "2020.09.08"]
[Round "2"]
[White "davidkalashian"]
[Black "saraswathii"]
[Result "1-0"]
[WhiteElo "2597"]
[BlackElo "2309"]
[TimeControl "180+1"]
[EndTime "10:15:28 PDT"]
[Termination "davidkalashian won by resignation"]

1. d4 {[%clk 0:03:00.9]} 1... g6 {[%clk 0:02:57.9]} 2. e4 {[%clk 0:03:00]} 2...
Bg7 {[%clk 0:02:56.7]} 3. Nc3 {[%clk 0:03:00.2]} 3... e6 {[%clk 0:02:55.9]} 4.
Nf3 {[%clk 0:02:58.1]} 4... Ne7 {[%clk 0:02:55.8]} 5. Bf4 {[%clk 0:02:55.7]}
5... d5 {[%clk 0:02:54.8]} 6. Qd2 {[%clk 0:02:50.8]} 6... O-O {[%clk 0:02:46.4]}
7. Bh6 {[%clk 0:02:48.4]} 7... dxe4 {[%clk 0:02:38.7]} 8. Nxe4 {[%clk
0:02:45.6]} 8... Nf5 {[%clk 0:02:32.9]} 9. Bxg7 {[%clk 0:02:43.7]} 9... Kxg7
{[%clk 0:02:33.8]} 10. O-O-O {[%clk 0:02:41]} 10... Qd5 {[%clk 0:02:27.4]} 11.
Nc3 {[%clk 0:02:39.4]} 11... Qa5 {[%clk 0:02:22.8]} 12. g4 {[%clk 0:02:34.8]}
12... Nd6 {[%clk 0:02:18.8]} 13. h4 {[%clk 0:02:34]} 13... h6 {[%clk 0:02:14.4]}
14. Ne5 {[%clk 0:02:11.3]} 14... Nd7 {[%clk 0:02:03.6]} 15. f4 {[%clk
0:02:05.5]} 15... Qb6 {[%clk 0:01:53.3]} 16. h5 {[%clk 0:01:57.6]} 16... Rh8
{[%clk 0:01:30.8]} 17. hxg6 {[%clk 0:01:41.3]} 17... fxg6 {[%clk 0:01:31.7]} 18.
Qd3 {[%clk 0:01:38.2]} 18... Nxe5 {[%clk 0:01:26]} 19. fxe5 {[%clk 0:01:31.1]}
19... Nf7 {[%clk 0:01:19]} 20. Qf3 {[%clk 0:01:30.1]} 20... Ng5 {[%clk
0:01:16.1]} 21. Qf6+ {[%clk 0:01:25.5]} 21... Kh7 {[%clk 0:01:05.5]} 22. Qxg5
{[%clk 0:01:22.8]} 22... Kg7 {[%clk 0:01:03.9]} 23. Qf6+ {[%clk 0:01:19.6]} 1-0

[Event "*** SCC Grand Prix: Titled Tuesday Blitz"]
[Site "Chess.com"]
[Date "2020.09.08"]
[Round "2"]
[White "ARMQUEEN"]
[Black "narutosmith"]
[Result "1-0"]
[WhiteElo "2468"]
[BlackElo "2254"]
[TimeControl "180+1"]
[EndTime "10:15:29 PDT"]
[Termination "ARMQUEEN won on time"]

1. e4 {[%clk 0:03:00.9]} 1... c5 {[%clk 0:02:59.8]} 2. Nc3 {[%clk 0:02:59.7]}
2... a6 {[%clk 0:02:59.1]} 3. f4 {[%clk 0:02:55.3]} 3... b5 {[%clk 0:02:59]} 4.
Nf3 {[%clk 0:02:54.7]} 4... Bb7 {[%clk 0:02:58.9]} 5. d3 {[%clk 0:02:54.7]} 5...
e6 {[%clk 0:02:57.2]} 6. Be3 {[%clk 0:02:54]} 6... d5 {[%clk 0:02:37.2]} 7. Bf2
{[%clk 0:02:51.6]} 7... b4 {[%clk 0:02:33.6]} 8. Na4 {[%clk 0:02:50.8]} 8... Qa5
{[%clk 0:02:11.5]} 9. b3 {[%clk 0:02:27.8]} 9... dxe4 {[%clk 0:02:05.3]} 10.
dxe4 {[%clk 0:02:28.7]} 10... Bxe4 {[%clk 0:02:00.7]} 11. Bd3 {[%clk 0:02:29.1]}
11... Bc6 {[%clk 0:01:53.7]} 12. f5 {[%clk 0:02:27.2]} 12... exf5 {[%clk
0:00:23.3]} 13. Bxf5 {[%clk 0:02:23.7]} 13... Nf6 {[%clk 0:00:20.6]} 14. O-O
{[%clk 0:02:22.7]} 14... Be7 {[%clk 0:00:18.4]} 15. Re1 {[%clk 0:02:22.8]} 15...
Bxa4 {[%clk 0:00:16.5]} 16. bxa4 {[%clk 0:02:17.8]} 16... Nc6 {[%clk 0:00:16.5]}
17. Qd6 {[%clk 0:02:12.7]} 17... Qb6 {[%clk 0:00:09.4]} 18. Bxc5 {[%clk
0:02:07.6]} 18... Rd8 {[%clk 0:00:04.1]} 19. Rxe7+ {[%clk 0:02:05.2]} 1-0

[Event "*** SCC Grand Prix: Titled Tuesday Blitz"]
[Site "Chess.com"]
[Date "2020.09.08"]
[Round "2"]
[White "thedjoker98"]
[Black "Konavets"]
[Result "0-1"]
[WhiteElo "2603"]
[BlackElo "3067"]
[TimeControl "180+1"]
[EndTime "10:15:31 PDT"]
[Termination "Konavets won by resignation"]

1. d4 {[%clk 0:03:00.9]} 1... Nf6 {[%clk 0:02:59.3]} 2. c4 {[%clk 0:03:00.9]}
2... e6 {[%clk 0:02:59.9]} 3. Nc3 {[%clk 0:03:01.1]} 3... Bb4 {[%clk 0:03:00]}
4. g3 {[%clk 0:03:01.2]} 4... c5 {[%clk 0:02:58.6]} 5. Nf3 {[%clk 0:03:01.1]}
5... Qa5 {[%clk 0:02:57.1]} 6. Bd2 {[%clk 0:02:31.8]} 6... cxd4 {[%clk
0:02:56.7]} 7. Nxd4 {[%clk 0:02:31.6]} 7... Qc5 {[%clk 0:02:57.4]} 8. e3 {[%clk
0:02:28.5]} 8... O-O {[%clk 0:02:57]} 9. a3 {[%clk 0:02:26.5]} 9... Bxc3 {[%clk
0:02:57.4]} 10. Bxc3 {[%clk 0:02:27.4]} 10... Nc6 {[%clk 0:02:57.9]} 11. b4
{[%clk 0:02:26.6]} 11... Qe7 {[%clk 0:02:54.9]} 12. Bg2 {[%clk 0:02:25.8]} 12...
d5 {[%clk 0:02:50.9]} 13. O-O {[%clk 0:02:23.1]} 13... Bd7 {[%clk 0:02:48.1]}
14. Qb3 {[%clk 0:02:21.8]} 14... Rac8 {[%clk 0:02:46.4]} 15. cxd5 {[%clk
0:02:16.8]} 15... exd5 {[%clk 0:02:46.2]} 16. Nxc6 {[%clk 0:02:11.3]} 16... bxc6
{[%clk 0:02:32]} 17. Bd4 {[%clk 0:02:09.1]} 17... Ne4 {[%clk 0:02:32.5]} 18.
Rfd1 {[%clk 0:02:02.6]} 18... Bf5 {[%clk 0:02:30.6]} 19. Rac1 {[%clk 0:02:00.7]}
19... Rfd8 {[%clk 0:02:28.7]} 20. Qa4 {[%clk 0:01:59.1]} 20... Nd6 {[%clk
0:02:23]} 21. Qxa7 {[%clk 0:01:53.6]} 21... Qe6 {[%clk 0:02:15.6]} 22. Qa4
{[%clk 0:01:48]} 22... Nc4 {[%clk 0:02:10.3]} 23. Qb3 {[%clk 0:01:45.5]} 23...
Be4 {[%clk 0:02:10.1]} 24. Bf1 {[%clk 0:01:43.9]} 24... Nd6 {[%clk 0:02:07.2]}
25. Bc5 {[%clk 0:01:34.5]} 25... Nf5 {[%clk 0:02:06.7]} 26. a4 {[%clk
0:01:28.9]} 26... Nh4 {[%clk 0:02:06.6]} 27. Bd3 {[%clk 0:01:20.8]} 27... Nf3+
{[%clk 0:01:39.2]} 28. Kf1 {[%clk 0:01:11.3]} 28... Qh3+ {[%clk 0:01:39.3]} 29.
Ke2 {[%clk 0:01:11.2]} 29... Qh5 {[%clk 0:01:40.2]} 30. Bxe4 {[%clk 0:00:59.6]}
30... Nd4+ {[%clk 0:01:37.6]} 0-1

[Event "*** SCC Grand Prix: Titled Tuesday Blitz"]
[Site "Chess.com"]
[Date "2020.09.08"]
[Round "2"]
[White "IngOscarArdila"]
[Black "Butterfly"]
[Result "0-1"]
[WhiteElo "2195"]
[BlackElo "2465"]
[TimeControl "180+1"]
[EndTime "10:15:34 PDT"]
[Termination "Butterfly won by resignation"]

1. d4 {[%clk 0:02:58.4]} 1... d6 {[%clk 0:02:59.5]} 2. Nf3 {[%clk 0:02:56.4]}
2... Bg4 {[%clk 0:02:59.1]} 3. Nbd2 {[%clk 0:02:53]} 3... Nd7 {[%clk 0:02:58.2]}
4. g3 {[%clk 0:02:53]} 4... e5 {[%clk 0:02:57.3]} 5. dxe5 {[%clk 0:02:52.5]}
5... dxe5 {[%clk 0:02:56.4]} 6. Bg2 {[%clk 0:02:52.5]} 6... c6 {[%clk
0:02:56.4]} 7. c3 {[%clk 0:02:52]} 7... Ngf6 {[%clk 0:02:54.5]} 8. Qc2 {[%clk
0:02:52]} 8... Qc7 {[%clk 0:02:43.2]} 9. O-O {[%clk 0:02:51.5]} 9... Be7 {[%clk
0:02:36.4]} 10. e4 {[%clk 0:02:51.4]} 10... O-O {[%clk 0:02:35.7]} 11. Re1
{[%clk 0:02:50.7]} 11... Rad8 {[%clk 0:02:32.9]} 12. a4 {[%clk 0:02:50.4]} 12...
Nc5 {[%clk 0:02:30.3]} 13. Bf1 {[%clk 0:02:40.9]} 13... Nfxe4 {[%clk 0:02:18.4]}
14. Nxe4 {[%clk 0:02:39.5]} 14... Bxf3 {[%clk 0:02:14]} 15. Nxc5 {[%clk
0:02:36.1]} 15... Bxc5 {[%clk 0:02:14.7]} 16. Be3 {[%clk 0:02:34.5]} 16... Bxe3
{[%clk 0:02:11.8]} 17. Rxe3 {[%clk 0:02:34]} 17... e4 {[%clk 0:02:09.9]} 18. Bg2
{[%clk 0:02:29.5]} 18... Bxg2 {[%clk 0:02:09.3]} 19. Kxg2 {[%clk 0:02:29.1]}
19... f5 {[%clk 0:02:09.9]} 20. Rae1 {[%clk 0:02:26.9]} 20... Rd7 {[%clk
0:02:07.8]} 21. f3 {[%clk 0:02:21.7]} 21... exf3+ {[%clk 0:02:07.5]} 22. Rxf3
{[%clk 0:02:21.4]} 22... g6 {[%clk 0:01:57.9]} 23. Rfe3 {[%clk 0:02:17]} 23...
Qd6 {[%clk 0:01:57.9]} 24. Qb3+ {[%clk 0:02:10.5]} 24... Rff7 {[%clk 0:01:52.3]}
25. Re8+ {[%clk 0:02:06.1]} 25... Kg7 {[%clk 0:01:52.5]} 26. Qc4 {[%clk
0:01:49.8]} 26... f4 {[%clk 0:01:48.8]} 27. gxf4 {[%clk 0:01:38.4]} 27... Rxf4
{[%clk 0:01:46]} 28. Qe2 {[%clk 0:00:59.1]} 28... Qd5+ {[%clk 0:01:39.1]} 29.
Kg3 {[%clk 0:00:57.2]} 29... Qg5+ {[%clk 0:01:38]} 0-1

[Event "*** SCC Grand Prix: Titled Tuesday Blitz"]
[Site "Chess.com"]
[Date "2020.09.08"]
[Round "2"]
[White "Legendinunknown"]
[Black "eCztery"]
[Result "1-0"]
[WhiteElo "2629"]
[BlackElo "2315"]
[TimeControl "180+1"]
[EndTime "10:15:38 PDT"]
[Termination "Legendinunknown won by resignation"]

1. d4 {[%clk 0:03:00.9]} 1... Nf6 {[%clk 0:02:56.9]} 2. c4 {[%clk 0:03:00.3]}
2... e5 {[%clk 0:02:53.2]} 3. dxe5 {[%clk 0:03:00]} 3... Ng4 {[%clk 0:02:53.2]}
4. Bf4 {[%clk 0:02:58.3]} 4... Nc6 {[%clk 0:02:52.9]} 5. Nf3 {[%clk 0:02:56.9]}
5... Bb4+ {[%clk 0:02:52.5]} 6. Nc3 {[%clk 0:02:56.6]} 6... Qe7 {[%clk
0:02:52.1]} 7. Qb3 {[%clk 0:02:54.3]} 7... a5 {[%clk 0:02:37]} 8. a3 {[%clk
0:02:52.4]} 8... a4 {[%clk 0:02:32.8]} 9. Qc2 {[%clk 0:02:52.5]} 9... Ba5 {[%clk
0:02:32.2]} 10. g3 {[%clk 0:02:45.8]} 10... Ngxe5 {[%clk 0:02:29.7]} 11. Nxe5
{[%clk 0:02:45.8]} 11... Nxe5 {[%clk 0:02:30.6]} 12. Bg2 {[%clk 0:02:46.2]}
12... O-O {[%clk 0:02:11.6]} 13. O-O {[%clk 0:02:45.3]} 13... Bxc3 {[%clk
0:02:11.7]} 14. Qxc3 {[%clk 0:02:45.1]} 14... d6 {[%clk 0:02:11.4]} 15. c5
{[%clk 0:02:45.4]} 15... Bg4 {[%clk 0:02:08.3]} 16. Rfe1 {[%clk 0:02:38.2]}
16... Rab8 {[%clk 0:01:56.5]} 17. Rad1 {[%clk 0:02:36.1]} 17... Rfd8 {[%clk
0:01:41.7]} 18. cxd6 {[%clk 0:02:35.1]} 18... cxd6 {[%clk 0:01:37.5]} 19. Qb4
{[%clk 0:02:35.2]} 19... Bd7 {[%clk 0:00:38.1]} 20. Rxd6 {[%clk 0:02:21.6]}
20... Qe8 {[%clk 0:00:06.8]} 21. Red1 {[%clk 0:02:16.9]} 21... Bc6 {[%clk
0:00:04.5]} 22. Bxe5 {[%clk 0:02:10.5]} 22... Rxd6 {[%clk 0:00:02.3]} 1-0

[Event "*** SCC Grand Prix: Titled Tuesday Blitz"]
[Site "Chess.com"]
[Date "2020.09.08"]
[Round "2"]
[White "manitodeplomo"]
[Black "CrazyMartian"]
[Result "1-0"]
[WhiteElo "2563"]
[BlackElo "2305"]
[TimeControl "180+1"]
[EndTime "10:15:45 PDT"]
[Termination "manitodeplomo won by resignation"]

1. d4 {[%clk 0:03:00.9]} 1... Nf6 {[%clk 0:02:58.2]} 2. c4 {[%clk 0:03:00]} 2...
e6 {[%clk 0:02:57.1]} 3. Nf3 {[%clk 0:02:59.6]} 3... d5 {[%clk 0:02:57.1]} 4.
Nc3 {[%clk 0:02:59.3]} 4... Be7 {[%clk 0:02:56.9]} 5. Bg5 {[%clk 0:02:57]} 5...
h6 {[%clk 0:02:55.8]} 6. Bxf6 {[%clk 0:02:51.6]} 6... Bxf6 {[%clk 0:02:56]} 7.
Qc2 {[%clk 0:02:52.5]} 7... c5 {[%clk 0:02:55.1]} 8. dxc5 {[%clk 0:02:51.9]}
8... Qa5 {[%clk 0:02:31]} 9. e3 {[%clk 0:02:47.9]} 9... Bxc3+ {[%clk 0:02:15.7]}
10. Qxc3 {[%clk 0:02:46.9]} 10... Qxc3+ {[%clk 0:02:15.8]} 11. bxc3 {[%clk
0:02:47.5]} 11... dxc4 {[%clk 0:02:16.2]} 12. Bxc4 {[%clk 0:02:45.2]} 12... Nd7
{[%clk 0:02:16.2]} 13. c6 {[%clk 0:02:43.6]} 13... bxc6 {[%clk 0:02:16.6]} 14.
O-O-O {[%clk 0:02:42.1]} 14... Ke7 {[%clk 0:02:16]} 15. Rd2 {[%clk 0:02:38.2]}
15... Nb6 {[%clk 0:02:15.7]} 16. Be2 {[%clk 0:02:36.4]} 16... c5 {[%clk
0:02:03.5]} 17. Ne5 {[%clk 0:02:33]} 17... Bb7 {[%clk 0:02:03.4]} 18. Rhd1
{[%clk 0:02:15.8]} 18... Rhc8 {[%clk 0:01:48.7]} 19. Rd7+ {[%clk 0:02:05]} 19...
Nxd7 {[%clk 0:01:41.7]} 20. Rxd7+ {[%clk 0:02:05.9]} 20... Kf6 {[%clk
0:00:52.5]} 21. f4 {[%clk 0:02:04.1]} 21... Kf5 {[%clk 0:00:25.1]} 22. Bd3+
{[%clk 0:01:38.3]} 1-0

[Event "*** SCC Grand Prix: Titled Tuesday Blitz"]
[Site "Chess.com"]
[Date "2020.09.08"]
[Round "2"]
[White "Gloomy_Wanderer"]
[Black "IveBeenThroughPain"]
[Result "1-0"]
[WhiteElo "2740"]
[BlackElo "2491"]
[TimeControl "180+1"]
[EndTime "10:15:48 PDT"]
[Termination "Gloomy_Wanderer won by resignation"]

1. d4 {[%clk 0:03:00.9]} 1... d6 {[%clk 0:03:00]} 2. e4 {[%clk 0:03:00.7]} 2...
Nf6 {[%clk 0:03:00.1]} 3. Nc3 {[%clk 0:03:00.2]} 3... e5 {[%clk 0:03:00.6]} 4.
Nge2 {[%clk 0:03:00.1]} 4... Be7 {[%clk 0:02:53.8]} 5. g3 {[%clk 0:03:00.2]}
5... b5 {[%clk 0:02:54.3]} 6. dxe5 {[%clk 0:02:45.1]} 6... dxe5 {[%clk
0:02:54.2]} 7. Qxd8+ {[%clk 0:02:45.7]} 7... Kxd8 {[%clk 0:02:33.7]} 8. Nxb5
{[%clk 0:02:40.7]} 8... Nxe4 {[%clk 0:02:33.8]} 9. Bg2 {[%clk 0:02:40.9]} 9...
Bb7 {[%clk 0:02:34.3]} 10. Nbc3 {[%clk 0:02:28.4]} 10... Nc5 {[%clk 0:02:27.3]}
11. Bxb7 {[%clk 0:02:27.9]} 11... Nxb7 {[%clk 0:02:28]} 12. Be3 {[%clk
0:02:28.8]} 12... c6 {[%clk 0:02:20.4]} 13. O-O-O+ {[%clk 0:02:27.3]} 13... Kc7
{[%clk 0:02:20.7]} 14. f4 {[%clk 0:02:28]} 14... Nd7 {[%clk 0:02:09.1]} 15. fxe5
{[%clk 0:02:25.8]} 15... Nxe5 {[%clk 0:02:09.5]} 16. Bf4 {[%clk 0:02:25.8]}
16... Bd6 {[%clk 0:02:07.3]} 17. Rxd6 {[%clk 0:02:11.3]} 17... Kxd6 {[%clk
0:02:07.1]} 18. Rd1+ {[%clk 0:02:11]} 18... Ke6 {[%clk 0:02:06.5]} 19. Nd4+
{[%clk 0:02:11.4]} 19... Kf6 {[%clk 0:02:06.8]} 20. Ne4+ {[%clk 0:02:11.6]}
20... Kg6 {[%clk 0:01:57.3]} 21. Bxe5 {[%clk 0:02:11.2]} 21... Rhe8 {[%clk
0:01:53.3]} 22. Nd6 {[%clk 0:02:04.1]} 22... Nxd6 {[%clk 0:01:04.2]} 23. Bxd6
{[%clk 0:02:03.3]} 23... Rad8 {[%clk 0:01:04.9]} 24. Nxc6 {[%clk 0:01:58.5]}
24... Rc8 {[%clk 0:00:59.9]} 25. Ne7+ {[%clk 0:01:58.2]} 25... Kg5 {[%clk
0:00:53.4]} 26. Nxc8 {[%clk 0:01:57.8]} 26... Rxc8 {[%clk 0:00:54.3]} 27. Bf4+
{[%clk 0:01:57.8]} 27... Kg4 {[%clk 0:00:54]} 28. Rd7 {[%clk 0:01:57.9]} 28...
g5 {[%clk 0:00:53.2]} 29. Bd2 {[%clk 0:01:55.1]} 29... f5 {[%clk 0:00:52.2]} 30.
Rxh7 {[%clk 0:01:54.8]} 30... a6 {[%clk 0:00:51.9]} 31. Rg7 {[%clk 0:01:52.3]}
31... Kh3 {[%clk 0:00:46.6]} 32. Rxg5 {[%clk 0:01:52.3]} 32... f4 {[%clk
0:00:47.2]} 33. gxf4 {[%clk 0:01:51.2]} 33... a5 {[%clk 0:00:47.5]} 34. Rxa5
{[%clk 0:01:50.3]} 34... Rg8 {[%clk 0:00:46.5]} 35. Rg5 {[%clk 0:01:49.5]} 35...
Rf8 {[%clk 0:00:44.5]} 36. a4 {[%clk 0:01:49.3]} 36... Kxh2 {[%clk 0:00:43.1]}
37. a5 {[%clk 0:01:49.6]} 1-0

[Event "*** SCC Grand Prix: Titled Tuesday Blitz"]
[Site "Chess.com"]
[Date "2020.09.08"]
[Round "2"]
[White "Maghalashvili"]
[Black "Agnes66678"]
[Result "1-0"]
[WhiteElo "2746"]
[BlackElo "2500"]
[TimeControl "180+1"]
[EndTime "10:15:49 PDT"]
[Termination "Maghalashvili won by resignation"]

1. Nf3 {[%clk 0:03:00.9]} 1... Nf6 {[%clk 0:02:59.6]} 2. g3 {[%clk 0:03:00.7]}
2... g6 {[%clk 0:02:59.5]} 3. Bg2 {[%clk 0:03:01.6]} 3... Bg7 {[%clk 0:03:00.4]}
4. O-O {[%clk 0:03:02.2]} 4... O-O {[%clk 0:03:01.3]} 5. c4 {[%clk 0:03:03]}
5... c5 {[%clk 0:02:59.3]} 6. d4 {[%clk 0:03:03.9]} 6... d6 {[%clk 0:02:59.3]}
7. Nc3 {[%clk 0:03:03.9]} 7... Nc6 {[%clk 0:02:59.2]} 8. dxc5 {[%clk 0:03:02.9]}
8... dxc5 {[%clk 0:03:00.1]} 9. Qa4 {[%clk 0:03:03.3]} 9... Be6 {[%clk
0:02:58.2]} 10. Be3 {[%clk 0:02:59.6]} 10... Qb6 {[%clk 0:02:58.3]} 11. Qb5
{[%clk 0:02:57.7]} 11... Nd7 {[%clk 0:02:48.6]} 12. Rfd1 {[%clk 0:02:48.4]}
12... h6 {[%clk 0:02:44.2]} 13. Rac1 {[%clk 0:02:46.8]} 13... Rfd8 {[%clk
0:02:30.3]} 14. b3 {[%clk 0:02:46.3]} 14... Kh7 {[%clk 0:02:28.1]} 15. Ne4
{[%clk 0:02:30.2]} 15... Nd4 {[%clk 0:02:12.3]} 16. Qxb6 {[%clk 0:02:13.3]}
16... Nxb6 {[%clk 0:02:12.3]} 17. Kf1 {[%clk 0:02:06.3]} 17... Nxf3 {[%clk
0:02:06]} 18. Bxf3 {[%clk 0:02:05.1]} 18... Bh3+ {[%clk 0:02:00.3]} 19. Bg2
{[%clk 0:01:54.9]} 19... Bxg2+ {[%clk 0:01:59.6]} 20. Kxg2 {[%clk 0:01:55.8]}
20... Bd4 {[%clk 0:01:59.2]} 21. Nxc5 {[%clk 0:01:52.8]} 21... Bxe3 {[%clk
0:01:58.7]} 22. fxe3 {[%clk 0:01:53.7]} 22... Rdb8 {[%clk 0:01:52.3]} 23. Nd7
{[%clk 0:01:46.7]} 23... Nxd7 {[%clk 0:01:51.8]} 24. Rxd7 {[%clk 0:01:46.1]}
24... Kg7 {[%clk 0:01:50.2]} 25. Rxe7 {[%clk 0:01:44.1]} 25... Re8 {[%clk
0:01:50.4]} 26. Rxb7 {[%clk 0:01:40.5]} 26... Rxe3 {[%clk 0:01:50]} 27. Kf2
{[%clk 0:01:41.2]} 27... Rae8 {[%clk 0:01:49.6]} 28. Rc2 {[%clk 0:01:40.9]}
28... R3e7 {[%clk 0:01:47.2]} 29. Rxe7 {[%clk 0:01:39.9]} 29... Rxe7 {[%clk
0:01:48.1]} 30. c5 {[%clk 0:01:40.8]} 30... Kf6 {[%clk 0:01:48.5]} 31. c6 {[%clk
0:01:40.7]} 31... Rc7 {[%clk 0:01:49.1]} 32. b4 {[%clk 0:01:41.2]} 32... Ke5
{[%clk 0:01:50]} 33. b5 {[%clk 0:01:41]} 33... Kd6 {[%clk 0:01:50.5]} 34. a4
{[%clk 0:01:40.7]} 34... Rc8 {[%clk 0:01:49.8]} 35. a5 {[%clk 0:01:38.2]} 35...
Kc7 {[%clk 0:01:45.7]} 36. Rd2 {[%clk 0:01:36.2]} 36... Rf8 {[%clk 0:01:43.2]}
37. Rd7+ {[%clk 0:01:35.9]} 37... Kb8 {[%clk 0:01:43.3]} 38. Rb7+ {[%clk
0:01:36]} 38... Ka8 {[%clk 0:01:42.8]} 39. a6 {[%clk 0:01:36.3]} 39... f5 {[%clk
0:01:41.7]} 40. e4 {[%clk 0:01:30]} 40... fxe4+ {[%clk 0:01:39.9]} 41. Ke3
{[%clk 0:01:30.9]} 41... Re8 {[%clk 0:01:40.6]} 42. Rg7 {[%clk 0:01:28.8]} 42...
Kb8 {[%clk 0:01:40.5]} 43. Rxg6 {[%clk 0:01:27.8]} 43... Kc7 {[%clk 0:01:40]}
44. Rg7+ {[%clk 0:01:27.2]} 44... Kb6 {[%clk 0:01:40.2]} 45. Rb7+ {[%clk
0:01:27.4]} 45... Kc5 {[%clk 0:01:40.4]} 46. c7 {[%clk 0:01:27.8]} 46... Kd6
{[%clk 0:01:39]} 47. Rb8 {[%clk 0:01:27.2]} 1-0